[Event "18th Brasschaat Open 2018"]
[Site "Brasschaat"]
[Date "2018.08.21"]
[Round "1"]
[White "Mitran, Anthony Cristian"]
[Black "Berghs, Hilde"]
[Result "1-0"]
[ECO "A46"]
[WhiteElo "2096"]
[BlackElo "1626"]
[Annotator "NA RC"]
[PlyCount "57"]
[EventDate "2018.08.18"]
[EventType "swiss"]
[EventCountry "BEL"]
[SourceTitle "playchess.com"]
[Source "ChessBase"]
[SourceQuality "1"]
[TimeControl "40/5400+30:1800+30"]

1. Nf3 {[%emt 0:00:00]} Nf6 {[%emt 0:00:00]} 2. b3 {[%emt 0:00:00]} g6 {[%emt 0:00:00]} 3. Bb2 {[%emt 0:00:00]} Bg7 {[%emt 0:00:00]} 4. d4 {[%emt 0:00:00]} O-O {[%emt 0:00:00]} 5. Nbd2 {[%emt 0:00:00]} d6 {[%emt 0:00:10]} 6. g3 {[%emt 0:00:02]} c5 {[%emt 0:00:31]} 7. Bg2 {[%emt 0:00:05]} Nc6 {[%emt 0:00:14]} 8. O-O {[%emt 0:00:22]} cxd4 {[%emt 0:00:23]} 9. Nxd4 {[%emt 0:00:01]} Bd7 {[%emt 0:00:56]} 10. e4 {[%emt 0:00:58]} Rc8 {[%emt 0:01:11]} 11. Nc4 {[%emt 0:00:42]} Nxd4 {[%emt 0:00:59]} 12. Bxd4 {[%emt 0:00:46]} b6 {[%emt 0:02:33]} 13. a4 {[%emt 0:05:08]} Qc7 {[%emt 0:02:20]} 14. e5 {[%emt 0:07:36]} Ng4 {[%emt 0:11:02]} 15. exd6 {[%emt 0:02:40]} exd6 {[%emt 0:00:33]} 16. Bxg7 {[%emt 0:00:54]} Kxg7 {[%emt 0:00:02]} 17. Qd4+ {[%emt 0:01:39]} f6 {[%emt 0:02:51]} 18. Rae1 {[%emt 0:09:39]} Ne5 {[%emt 0:03:59]} 19. Nxd6 {[%emt 0:01:35]} Qc5 {[%emt 0:00:59]} 20. Qxc5 {[%emt 0:05:37]} Rxc5 {[%emt 0:00:03]} 21. f4 {[%emt 0:02:44]} Nf7 {[%emt 0:00:59]} 22. Re7 {[%emt 0:01:07]} Bc6 {[%emt 0:03:23]} 23. Bxc6 {[%emt 0:03:35]} Rxc6 {[%emt 0:00:02]} 24. Nb5 {[%emt 0:00:02]} Kg8 {[%emt 0:04:57]} 25. c4 {[%emt 0:00:52]} a6 {[%emt 0:02:57]} 26. Nc7 {[%emt 0:00:36]} a5 {[%emt 0:01:42]} 27. Nd5 {[%emt 0:02:30]} Nd6 {[%emt 0:00:32]} 28. Re6 {[%emt 0:01:09]} Kg7 {[%emt 0:01:20]} 29. Rfe1 {[%emt 0:00:30]} 1-0

[Event "18th Brasschaat Open 2018"]
[Site "Brasschaat"]
[Date "2018.08.21"]
[Round "1"]
[White "Kloosterboer, Nico"]
[Black "Oudewaal, Vincent"]
[Result "0-1"]
[ECO "A46"]
[WhiteElo "1623"]
[BlackElo "2070"]
[Annotator "NA RC"]
[PlyCount "64"]
[EventDate "2018.08.18"]
[EventType "swiss"]
[EventCountry "BEL"]
[SourceTitle "playchess.com"]
[Source "ChessBase"]
[SourceQuality "1"]
[TimeControl "40/5400+30:1800+30"]

1. d4 {[%emt 0:00:00]} Nf6 {[%emt 0:00:00]} 2. Bf4 {[%emt 0:00:00]} d6 {[%emt 0:00:00]} 3. e3 {[%emt 0:01:07]} Nbd7 {[%emt 0:00:20]} 4. Nf3 {[%emt 0:00:43]} Nh5 {[%emt 0:01:14]} 5. Be2 {[%emt 0:02:13]} c5 {[%emt 0:02:23]} 6. c3 {[%emt 0:13:30]} cxd4 {[%emt 0:00:17]} 7. cxd4 {[%emt 0:02:27]} Nxf4 {[%emt 0:00:09]} 8. exf4 {[%emt 0:00:43]} g6 {[%emt 0:00:32]} 9. Nc3 {[%emt 0:08:09]} Bg7 {[%emt 0:00:12]} 10. Rc1 {[%emt 0:00:28]} O-O {[%emt 0:01:42]} 11. O-O {[%emt 0:01:00]} Nf6 {[%emt 0:03:49]} 12. Re1 {[%emt 0:00:47]} a6 {[%emt 0:06:04]} 13. Ng5 {[%emt 0:14:08]} h6 {[%emt 0:07:13]} 14. Nf3 {[%emt 0:02:28]} b5 {[%emt 0:03:44]} 15. Bd3 {[%emt 0:05:00]} e6 {[%emt 0:03:25]} 16. Ne4 {[%emt 0:11:04]} Nd5 {[%emt 0:04:08]} 17. Qd2 {[%emt 0:03:19]} Bb7 {[%emt 0:05:53]} 18. Ng3 {[%emt 0:15:21]} Nf6 {[%emt 0:07:58]} 19. Be2 {[%emt 0:11:54]} Qb6 {[%emt 0:02:20]} 20. Rc3 {[%emt 0:00:21]} b4 {[%emt 0:05:08]} 21. Rc4 {[%emt 0:01:11]} a5 {[%emt 0:00:19]} 22. Rec1 {[%emt 0:00:04]} Bd5 {[%emt 0:02:58]} 23. Rc7 {[%emt 0:01:15]} Ne8 {[%emt 0:00:14]} 24. Rc8 {[%emt 0:02:08]} Rxc8 {[%emt 0:00:18]} 25. Rxc8 {[%emt 0:00:02]} Bxa2 {[%emt 0:00:18]} 26. Qd3 {[%emt 0:02:31]} Bd5 {[%emt 0:00:30]} 27. Qb5 {[%emt 0:00:53]} Qxb5 {[%emt 0:00:25]} 28. Bxb5 {[%emt 0:00:01]} Bxf3 {[%emt 0:00:15]} 29. Rxe8 {[%emt 0:00:24]} Rxe8 {[%emt 0:00:17]} 30. Bxe8 {[%emt 0:00:07]} Bd1 {[%emt 0:01:13]} 31. Ne4 {[%emt 0:00:45]} Kf8 {[%emt 0:42:12]} 32. d5 {[%emt 0:01:57]} Kg8 0-1

[Event "18th Brasschaat Open 2018"]
[Site "Brasschaat"]
[Date "2018.08.21"]
[Round "2"]
[White "Oudewaal, Vincent"]
[Black "De Schouwer, Jonas"]
[Result "1-0"]
[ECO "A29"]
[WhiteElo "2070"]
[BlackElo "1790"]
[Annotator "NA RC"]
[PlyCount "45"]
[EventDate "2018.08.18"]
[EventType "swiss"]
[EventCountry "BEL"]
[SourceTitle "playchess.com"]
[Source "ChessBase"]
[SourceQuality "1"]
[TimeControl "40/5400+30:1800+30"]

1. c4 {[%emt 0:00:00]} e5 {[%emt 0:00:00]} 2. g3 {[%emt 0:00:00]} Nf6 {[%emt 0:00:00]} 3. Bg2 {[%emt 0:00:00]} d5 {[%emt 0:00:09]} 4. cxd5 {[%emt 0:00:00]} Nxd5 {[%emt 0:00:07]} 5. Nc3 {[%emt 0:00:01]} Nb6 {[%emt 0:00:35]} 6. Nf3 {[%emt 0:00:11]} Nc6 {[%emt 0:00:19]} 7. O-O {[%emt 0:00:08]} Be7 {[%emt 0:06:22]} 8. a3 {[%emt 0:00:08]} O-O {[%emt 0:01:26]} 9. b4 {[%emt 0:00:08]} a6 {[%emt 0:02:00]} 10. d3 {[%emt 0:07:05]} Be6 {[%emt 0:03:48]} 11. Bb2 {[%emt 0:00:48]} Qd7 {[%emt 0:04:22]} 12. Ne4 {[%emt 0:03:21]} f6 {[%emt 0:03:31]} 13. Nc5 {[%emt 0:01:29]} Bxc5 {[%emt 0:03:06]} 14. bxc5 {[%emt 0:00:03]} Nd5 {[%emt 0:02:15]} 15. e4 {[%emt 0:00:24]} Nde7 {[%emt 0:01:42]} 16. d4 {[%emt 0:00:08]} Bc4 {[%emt 0:12:02]} 17. dxe5 {[%emt 0:11:49]} Qe6 {[%emt 0:13:40]} 18. exf6 {[%emt 0:07:56]} Bxf1 {[%emt 0:07:24]} 19. fxe7 {[%emt 0:05:58]} Qxe7 {[%emt 0:05:37]} 20. Qd5+ {[%emt 0:05:39]} Kh8 {[%emt 0:02:50]} 21. Rxf1 {[%emt 0:00:19]} Rad8 {[%emt 0:03:02]} 22. Qh5 {[%emt 0:01:47]} Qxe4 {[%emt 0:04:43]} 23. Ng5 {[%emt 0:54:08]} 1-0

[Event "18th Brasschaat Open 2018"]
[Site "Brasschaat"]
[Date "2018.08.21"]
[Round "2"]
[White "De Cocq, Ramin"]
[Black "Mitran, Anthony Cristian"]
[Result "0-1"]
[ECO "E21"]
[WhiteElo "1766"]
[BlackElo "2096"]
[Annotator "NA RC"]
[PlyCount "56"]
[EventDate "2018.08.18"]
[EventType "swiss"]
[EventCountry "BEL"]
[SourceTitle "playchess.com"]
[Source "ChessBase"]
[SourceQuality "1"]
[TimeControl "40/5400+30:1800+30"]

1. d4 {[%emt 0:00:00]} b6 {[%emt 0:00:00]} 2. c4 {[%emt 0:00:00]} Bb7 {[%emt 0:00:00]} 3. Nc3 {[%emt 0:00:35]} e6 {[%emt 0:00:00]} 4. e3 {[%emt 0:00:10]} Nf6 {[%emt 0:00:00]} 5. Nf3 {[%emt 0:03:54]} Bb4 {[%emt 0:04:43]} 6. Bd2 {[%emt 0:07:17]} O-O {[%emt 0:01:43]} 7. Be2 {[%emt 0:04:00]} Be7 {[%emt 0:02:11]} 8. O-O {[%emt 0:00:20]} c5 {[%emt 0:00:13]} 9. a3 {[%emt 0:04:22]} d5 {[%emt 0:02:58]} 10. Rb1 {[%emt 0:21:44]} cxd4 {[%emt 0:07:41]} 11. Nxd4 {[%emt 0:10:45]} dxc4 {[%emt 0:00:51]} 12. Bxc4 {[%emt 0:00:59]} Nbd7 {[%emt 0:09:34]} 13. Bxe6 {[%emt 0:24:42]} fxe6 {[%emt 0:01:03]} 14. Nxe6 {[%emt 0:01:45]} Qe8 {[%emt 0:00:00]} 15. Nxf8 {[%emt 0:02:50]} Bxf8 {[%emt 0:00:02]} 16. b4 {[%emt 0:13:21]} Qg6 {[%emt 0:01:14]} 17. f3 {[%emt 0:00:48]} Ne5 {[%emt 0:04:43]} 18. e4 {[%emt 0:00:52]} Kh8 {[%emt 0:05:15]} 19. Qe2 {[%emt 0:00:23]} Rc8 {[%emt 0:01:15]} 20. Rfc1 {[%emt 0:00:38]} Rd8 {[%emt 0:19:06]} 21. Be1 {[%emt 0:00:30]} Nh5 {[%emt 0:04:15]} 22. Rd1 {[%emt 0:00:30]} Nf4 {[%emt 0:00:42]} 23. Qf1 {[%emt 0:00:09]} Rc8 {[%emt 0:02:00]} 24. Ne2 {[%emt 0:00:50]} Nxe2+ {[%emt 0:11:03]} 25. Qxe2 {[%emt 0:00:06]} Nxf3+ {[%emt 0:00:16]} 26. Kh1 {[%emt 0:00:57]} Bxe4 {[%emt 0:00:28]} 27. Rb3 {[%emt 0:00:31]} Nxe1 {[%emt 0:01:37]} 28. Rxe1 {[%emt 0:00:09]} Rc2 {[%emt 0:00:34]} 0-1

[Event "18th Brasschaat Open 2018"]
[Site "Brasschaat"]
[Date "2018.08.21"]
[Round "3"]
[White "Mitran, Anthony Cristian"]
[Black "Gorts, Sven"]
[Result "1/2-1/2"]
[ECO "D04"]
[WhiteElo "2096"]
[BlackElo "1901"]
[Annotator "NA RC"]
[PlyCount "73"]
[EventDate "2018.08.18"]
[EventType "swiss"]
[EventCountry "BEL"]
[SourceTitle "playchess.com"]
[Source "ChessBase"]
[SourceQuality "1"]
[TimeControl "40/5400+30:1800+30"]

1. Nf3 {[%emt 0:00:00]} c5 {[%emt 0:00:00]} 2. b3 {[%emt 0:00:00]} Nc6 {[%emt 0:00:02]} 3. Bb2 {[%emt 0:00:00]} d5 {[%emt 0:00:35]} 4. e3 {[%emt 0:00:37]} Nf6 {[%emt 0:00:37]} 5. d4 {[%emt 0:00:06]} cxd4 {[%emt 0:01:59]} 6. exd4 {[%emt 0:00:14]} Bg4 {[%emt 0:00:28]} 7. h3 {[%emt 0:00:46]} Bh5 {[%emt 0:00:26]} 8. Be2 {[%emt 0:00:29]} e6 {[%emt 0:00:19]} 9. O-O {[%emt 0:00:05]} Be7 {[%emt 0:01:17]} 10. a4 {[%emt 0:01:51]} O-O {[%emt 0:00:33]} 11. Nbd2 {[%emt 0:07:12]} Rc8 {[%emt 0:01:21]} 12. c3 {[%emt 0:00:27]} h6 {[%emt 0:12:01]} 13. Bd3 {[%emt 0:00:42]} e5 {[%emt 0:01:19]} 14. dxe5 {[%emt 0:09:09]} Nxe5 {[%emt 0:00:20]} 15. Be2 {[%emt 0:10:07]} Nxf3+ {[%emt 0:00:53]} 16. Bxf3 {[%emt 0:04:19]} Bxf3 {[%emt 0:00:56]} 17. Qxf3 {[%emt 0:00:10]} Re8 {[%emt 0:02:29]} 18. Rad1 {[%emt 0:02:35]} Qb6 {[%emt 0:00:29]} 19. c4 {[%emt 0:00:38]} dxc4 {[%emt 0:00:36]} 20. Nxc4 {[%emt 0:00:01]} Rxc4 {[%emt 0:05:43]} 21. Bxf6 {[%emt 0:22:32]} Rb4 {[%emt 0:01:27]} 22. Bxe7 {[%emt 0:00:54]} Rxe7 {[%emt 0:00:17]} 23. Rd3 {[%emt 0:00:07]} Rbe4 {[%emt 0:04:30]} 24. Rc3 {[%emt 0:01:20]} Qe6 {[%emt 0:01:21]} 25. Qd3 {[%emt 0:02:29]} Qd7 {[%emt 0:08:01]} 26. Qg3 {[%emt 0:01:50]} R4e5 {[%emt 0:06:24]} 27. Rfc1 {[%emt 0:01:33]} a6 {[%emt 0:05:55]} 28. Kh2 {[%emt 0:02:33]} Kh7 {[%emt 0:00:55]} 29. Rc8 {[%emt 0:07:26]} Qd6 {[%emt 0:07:24]} 30. Re1 {[%emt 0:05:20]} Qd7 {[%emt 0:02:34]} 31. Rxe5 {[%emt 0:03:23]} Rxe5 {[%emt 0:00:09]} 32. Rf8 {[%emt 0:02:38]} Rg5 {[%emt 0:06:44]} 33. Qf4 {[%emt 0:03:02]} Qd5 {[%emt 0:04:15]} 34. g4 {[%emt 0:03:39]} f6 {[%emt 0:02:16]} 35. Qb8 {[%emt 0:02:47]} Qe5+ {[%emt 0:05:07]} 36. Qxe5 {[%emt 0:01:08]} Rxe5 {[%emt 0:00:05]} 37. Rf7 {[%emt 0:02:18]} 1/2-1/2

[Event "18th Brasschaat Open 2018"]
[Site "Brasschaat"]
[Date "2018.08.21"]
[Round "3"]
[White "De Cuyper, Yago"]
[Black "Vande Ginste, Michiel"]
[Result "0-1"]
[ECO "E16"]
[WhiteElo "1749"]
[BlackElo "1762"]
[Annotator "NA RC"]
[PlyCount "92"]
[EventDate "2018.08.18"]
[EventType "swiss"]
[EventCountry "BEL"]
[SourceTitle "playchess.com"]
[Source "ChessBase"]
[SourceQuality "1"]
[TimeControl "40/5400+30:1800+30"]

1. d4 {[%emt 0:26:44]} Nf6 {[%emt 0:00:00]} 2. c4 {[%emt 0:00:06]} e6 {[%emt 0:00:00]} 3. g3 {[%emt 0:00:04]} c5 {[%emt 0:00:12]} 4. Nf3 {[%emt 0:00:10]} b6 {[%emt 0:00:07]} 5. Bg2 {[%emt 0:02:24]} Bb7 {[%emt 0:00:05]} 6. d5 {[%emt 0:04:47]} exd5 {[%emt 0:00:14]} 7. Nh4 {[%emt 0:00:07]} d6 {[%emt 0:00:28]} 8. Nc3 {[%emt 0:01:29]} Nbd7 {[%emt 0:04:23]} 9. O-O {[%emt 0:07:47]} g6 {[%emt 0:07:47]} 10. Bf4 {[%emt 0:06:10]} Ne5 {[%emt 0:13:15]} 11. Nxd5 {[%emt 0:01:34]} Nxd5 {[%emt 0:05:11]} 12. Bxd5 {[%emt 0:00:06]} Qc7 {[%emt 0:00:51]} 13. Qd2 {[%emt 0:02:17]} Bg7 {[%emt 0:04:15]} 14. Rad1 {[%emt 0:01:05]} O-O {[%emt 0:01:12]} 15. b3 {[%emt 0:02:44]} Rfd8 {[%emt 0:07:51]} 16. Bg5 {[%emt 0:07:25]} Rd7 {[%emt 0:00:31]} 17. Qf4 {[%emt 0:00:18]} Re8 {[%emt 0:08:03]} 18. Bf6 {[%emt 0:05:16]} Bf8 {[%emt 0:00:51]} 19. f3 {[%emt 0:06:32]} a6 {[%emt 0:09:34]} 20. e4 {[%emt 0:00:58]} Bxd5 {[%emt 0:05:28]} 21. Rxd5 {[%emt 0:00:39]} h6 {[%emt 0:00:44]} 22. Qd2 {[%emt 0:01:55]} Re6 {[%emt 0:05:52]} 23. Bxe5 {[%emt 0:01:14]} Rxe5 {[%emt 0:00:05]} 24. Ng2 {[%emt 0:01:01]} Rxd5 {[%emt 0:02:20]} 25. Qxd5 {[%emt 0:00:08]} Bg7 {[%emt 0:00:10]} 26. Nf4 {[%emt 0:00:23]} Bd4+ {[%emt 0:02:10]} 27. Kg2 {[%emt 0:00:06]} Kh7 {[%emt 0:00:37]} 28. Ne2 {[%emt 0:01:28]} Bg7 {[%emt 0:01:34]} 29. Rd1 {[%emt 0:00:21]} b5 {[%emt 0:01:24]} 30. Rb1 {[%emt 0:01:41]} Qa5 {[%emt 0:02:12]} 31. Qd3 {[%emt 0:07:30]} Qxa2 {[%emt 0:02:03]} 32. Kh3 {[%emt 0:00:23]} Qa5 {[%emt 0:02:11]} 33. f4 {[%emt 0:00:56]} Rd8 {[%emt 0:01:50]} 34. Rd1 {[%emt 0:00:28]} Bf6 {[%emt 0:03:02]} 35. f5 {[%emt 0:01:56]} g5 {[%emt 0:00:34]} 36. g4 {[%emt 0:01:18]} bxc4 {[%emt 0:03:11]} 37. Qxc4 {[%emt 0:00:12]} Rd7 {[%emt 0:00:30]} 38. Ng3 {[%emt 0:00:59]} Be5 {[%emt 0:02:34]} 39. Nh5 {[%emt 0:00:16]} Qa2 {[%emt 0:01:09]} 40. Ng3 {[%emt 0:00:11]} Qa5 {[%emt 0:03:38]} 41. Nh5 {[%emt 0:30:39]} Qb5 {[%emt 0:02:21]} 42. Qc2 {[%emt 0:00:00]} Rb7 {[%emt 0:01:41]} 43. Rd3 {[%emt 0:00:00]} Qb4 {[%emt 0:01:53]} 44. Re3 {[%emt 0:00:00]} Qd4 {[%emt 0:01:52]} 45. Qe2 {[%emt 0:00:00]} c4 {[%emt 0:00:39]} 46. f6 {[%emt 0:00:00]} Qxe3+ {[%emt 0:00:42]} 0-1

[Event "18th Brasschaat Open 2018"]
[Site "Brasschaat"]
[Date "2018.08.21"]
[Round "4"]
[White "Oudewaal, Vincent"]
[Black "Busschots, Johan"]
[Result "1/2-1/2"]
[ECO "A14"]
[WhiteElo "2070"]
[BlackElo "1823"]
[Annotator "NA RC"]
[PlyCount "103"]
[EventDate "2018.08.18"]
[EventType "swiss"]
[EventCountry "BEL"]
[SourceTitle "playchess.com"]
[Source "ChessBase"]
[SourceQuality "1"]
[TimeControl "40/5400+30:1800+30"]

1. c4 {[%emt 0:00:00]} e6 {[%emt 0:00:14]} 2. g3 {[%emt 0:00:00]} Nf6 {[%emt 0:00:14]} 3. Bg2 {[%emt 0:00:00]} d5 {[%emt 0:00:08]} 4. Nf3 {[%emt 0:00:01]} Be7 {[%emt 0:00:13]} 5. O-O {[%emt 0:00:08]} O-O {[%emt 0:00:04]} 6. b3 {[%emt 0:00:12]} c5 {[%emt 0:00:55]} 7. Bb2 {[%emt 0:00:14]} Nc6 {[%emt 0:01:31]} 8. e3 {[%emt 0:00:07]} b6 {[%emt 0:00:25]} 9. Nc3 {[%emt 0:01:09]} Bb7 {[%emt 0:02:54]} 10. cxd5 {[%emt 0:00:41]} exd5 {[%emt 0:00:31] LiveBook: 150 Games} 11. d4 {[%emt 0:00:12]} Rc8 {[%emt 0:03:56]} 12. dxc5 {[%emt 0:04:18]} bxc5 {[%emt 0:00:25]} 13. Rc1 {[%emt 0:03:21]} Re8 {[%emt 0:06:35]} 14. Nh4 $11 {[%emt 0:06:53]} Ne5 {[%emt 0:04:27]} 15. Qe2 {[%emt 0:15:49]} Qa5 {[%emt 0:08:23]} 16. Rfd1 {[%emt 0:14:09]} Ba6 {[%emt 0:01:06]} 17. Qc2 {[%emt 0:00:27]} c4 {[%emt 0:08:21]} 18. Nxd5 {[%emt 0:16:26]} Nd3 {[%emt 0:11:24]} 19. Nxe7+ {[%emt 0:01:59]} Rxe7 {[%emt 0:01:01]} 20. Bc3 {[%emt 0:07:55]} cxb3 {[%emt 0:09:10]} 21. Qd2 {[%emt 0:23:28]} Qxa2 {[%emt 0:01:59]} 22. Bxf6 {[%emt 0:01:21]} Rxc1 {[%emt 0:02:05]} 23. Qxc1 {[%emt 0:00:11]} Qxf2+ {[%emt 0:01:34]} 24. Kh1 {[%emt 0:00:06]} Qxf6 {[%emt 0:00:42]} 25. Rxd3 {[%emt 0:00:03]} Qb6 {[%emt 0:03:00]} 26. Rc3 {[%emt 0:01:35]} g6 {[%emt 0:02:11]} 27. Nf3 {[%emt 0:00:06]} b2 {[%emt 0:00:34]} 28. Qb1 {[%emt 0:00:13]} Bb7 {[%emt 0:13:17]} 29. Nd4 {[%emt 0:00:06]} Bxg2+ {[%emt 0:01:20]} 30. Kxg2 {[%emt 0:00:01]} Qb4 {[%emt 0:01:21]} 31. Rc8+ {[%emt 0:01:11]} Kg7 {[%emt 0:00:04]} 32. Rc2 {[%emt 0:00:04]} Rb7 {[%emt 0:00:46]} 33. Nf3 {[%emt 0:01:35]} a5 {[%emt 0:00:55]} 34. Nd2 {[%emt 0:01:06]} a4 {[%emt 0:00:38]} 35. Qa2 {[%emt 0:00:51]} b1=Q {[%emt 0:15:07]} 36. Nxb1 {[%emt 0:00:16]} Qxb1 {[%emt 0:00:00]} 37. Qxa4 {[%emt 0:00:00]} Qb6 {[%emt 0:00:00]} 38. Qd4+ {[%emt 0:00:45]} Qf6 {[%emt 0:00:00]} 39. Rf2 {[%emt 0:00:36]} Qxd4 {[%emt 0:00:00]} 40. exd4 {[%emt 0:00:02]} f5 {[%emt 0:00:00]} 41. h4 {[%emt 0:10:29]} h6 {[%emt 0:00:00]} 42. h5 {[%emt 0:00:28]} Rd7 {[%emt 0:00:00]} 43. hxg6 {[%emt 0:00:11]} Rxd4 {[%emt 0:00:00]} 44. Rxf5 {[%emt 0:00:08]} Kxg6 {[%emt 0:00:00]} 45. Ra5 {[%emt 0:00:09]} Rd6 {[%emt 0:00:00]} 46. Kh3 {[%emt 0:00:06]} Rc6 {[%emt 0:00:00]} 47. Kh4 {[%emt 0:00:06]} Rc4+ {[%emt 0:00:00]} 48. g4 {[%emt 0:00:07]} Rc6 {[%emt 0:00:00]} 49. Ra8 {[%emt 0:00:05]} Rb6 {[%emt 0:00:03]} 50. Rg8+ {[%emt 0:00:07]} Kh7 {[%emt 0:00:16]} 51. Rf8 {[%emt 0:00:07]} Kg6 {[%emt 0:00:13]} 52. Rf5 {[%emt 0:26:20]} 1/2-1/2

[Event "18th Brasschaat Open 2018"]
[Site "Brasschaat"]
[Date "2018.08.21"]
[Round "4"]
[White "Boudry, William"]
[Black "De Schouwer, Jonas"]
[Result "1-0"]
[ECO "C55"]
[WhiteElo "2044"]
[BlackElo "1790"]
[Annotator "NA RC"]
[PlyCount "106"]
[EventDate "2018.08.18"]
[EventType "swiss"]
[EventCountry "BEL"]
[SourceTitle "playchess.com"]
[Source "ChessBase"]
[SourceQuality "1"]
[TimeControl "40/5400+30:1800+30"]

1. e4 {[%emt 0:00:00]} e5 {[%emt 0:00:00]} 2. Nf3 {[%emt 0:00:13]} Nc6 {[%emt 0:00:00]} 3. Bc4 {[%emt 0:00:07]} Nf6 {[%emt 0:00:00]} 4. d3 {[%emt 0:00:06]} Be7 {[%emt 0:00:19]} 5. Bb3 {[%emt 0:00:06]} d6 {[%emt 0:03:17]} 6. c3 {[%emt 0:00:17]} O-O {[%emt 0:03:32]} 7. Nbd2 {[%emt 0:00:07]} Na5 {[%emt 0:02:47]} 8. Bc2 {[%emt 0:00:35]} c5 {[%emt 0:03:32]} 9. Nf1 {[%emt 0:00:05] LiveBook: 39 Games} Nc6 {[%emt 0:01:32]} 10. Ng3 {[%emt 0:00:06]} Qc7 {[%emt 0:02:25]} 11. O-O {[%emt 0:01:52]} h6 {[%emt 0:08:22]} 12. Qe2 {[%emt 0:00:42]} Be6 $11 {[%emt 0:06:48]} 13. Nh4 {[%emt 0:03:25]} d5 {[%emt 0:07:10]} 14. Nhf5 {[%emt 0:02:19]} Rad8 {[%emt 0:10:09]} 15. Ba4 {[%emt 0:07:20]} a6 {[%emt 0:12:16]} 16. Bxc6 {[%emt 0:01:04]} bxc6 {[%emt 0:01:37]} 17. f4 {[%emt 0:00:38]} c4 {[%emt 0:14:08]} 18. fxe5 {[%emt 0:07:14]} cxd3 {[%emt 0:02:18]} 19. Nxe7+ {[%emt 0:00:12]} Qxe7 {[%emt 0:00:37]} 20. exf6 {[%emt 0:00:10]} dxe2 {[%emt 0:05:11]} 21. fxe7 {[%emt 0:00:05]} exf1=Q+ {[%emt 0:00:35]} 22. Kxf1 {[%emt 0:00:11]} dxe4 {[%emt 0:00:33]} 23. exd8=R {[%emt 0:02:13]} Rxd8 {[%emt 0:00:22]} 24. Be3 {[%emt 0:00:32]} f5 {[%emt 0:03:15]} 25. h4 {[%emt 0:01:55]} f4 {[%emt 0:01:48]} 26. Bxf4 {[%emt 0:00:02]} Rf8 {[%emt 0:00:10]} 27. Nh5 {[%emt 0:02:28]} Bg4 {[%emt 0:03:31]} 28. Ke1 {[%emt 0:01:22]} Bxh5 {[%emt 0:00:13]} 29. g3 {[%emt 0:00:01]} Rd8 {[%emt 0:00:44]} 30. Kf2 {[%emt 0:00:26]} Bf3 {[%emt 0:00:32]} 31. a4 {[%emt 0:01:30]} Rd3 {[%emt 0:01:50]} 32. a5 {[%emt 0:00:44]} Kf7 {[%emt 0:01:16]} 33. Ra4 {[%emt 0:00:18]} Rd5 {[%emt 0:02:49]} 34. c4 {[%emt 0:01:40]} Rf5 {[%emt 0:00:36]} 35. Ke3 {[%emt 0:00:23]} Ke6 {[%emt 0:01:48]} 36. Bc7 {[%emt 0:01:28]} Kd7 {[%emt 0:00:56]} 37. Bb6 {[%emt 0:00:20]} g5 {[%emt 0:00:53]} 38. hxg5 {[%emt 0:00:14]} Rxg5 {[%emt 0:00:19]} 39. c5 {[%emt 0:03:50]} Rxg3 {[%emt 0:00:40]} 40. Rd4+ {[%emt 0:00:02]} Ke7 {[%emt 0:00:38]} 41. Rd6 {[%emt 0:30:56]} Bh1+ {[%emt 0:15:11]} 42. Kf4 {[%emt 0:00:00]} Rf3+ {[%emt 0:03:18]} 43. Kxe4 {[%emt 0:00:00]} Rf2+ {[%emt 0:05:28]} 44. Ke5 {[%emt 0:00:00]} Re2+ {[%emt 0:01:34]} 45. Kf5 {[%emt 0:00:00]} Rxb2 {[%emt 0:00:49]} 46. Bd8+ {[%emt 0:00:00]} Ke8 {[%emt 0:01:13]} 47. Bh4 {[%emt 0:00:00]} Rc2 {[%emt 0:02:00]} 48. Kg6 {[%emt 0:00:00]} Rg2+ {[%emt 0:01:56]} 49. Kxh6 {[%emt 0:00:00]} Rc2 {[%emt 0:00:44]} 50. Kg7 {[%emt 0:00:00]} Rg2+ {[%emt 0:01:30]} 51. Kf6 {[%emt 0:00:00]} Rg4 {[%emt 0:01:20]} 52. Bg5 {[%emt 0:00:00]} Bd5 {[%emt 0:00:54]} 53. Kf5 {[%emt 0:00:00]} Rg1 {[%emt 0:00:34] Ke4 [%clk 0:00:00]} 1-0

[Event "18th Brasschaat Open 2018"]
[Site "Brasschaat"]
[Date "2018.08.21"]
[Round "4"]
[White "Ismail, Tamer"]
[Black "Gottfried, Jonathan"]
[Result "1-0"]
[ECO "B55"]
[WhiteElo "1999"]
[BlackElo "1784"]
[Annotator "NA RC"]
[PlyCount "75"]
[EventDate "2018.08.18"]
[EventType "swiss"]
[EventCountry "BEL"]
[SourceTitle "playchess.com"]
[Source "ChessBase"]
[SourceQuality "1"]
[TimeControl "40/5400+30:1800+30"]

1. e4 {[%emt 0:00:00]} c5 {[%emt 0:00:00]} 2. Nf3 {[%emt 0:00:00]} d6 {[%emt 0:00:00]} 3. d4 {[%emt 0:00:00]} cxd4 {[%emt 0:00:00]} 4. Nxd4 {[%emt 0:00:00]} Nf6 {[%emt 0:00:00]} 5. f3 {[%emt 0:00:00]} e5 {[%emt 0:01:27]} 6. Nb3 {[%emt 0:00:43] LiveBook: 797 Games} Be7 {[%emt 0:01:26]} 7. c4 {[%emt 0:00:18]} O-O {[%emt 0:07:47]} 8. Be3 {[%emt 0:00:27]} Nc6 {[%emt 0:03:34]} 9. Be2 {[%emt 0:00:40]} Be6 {[%emt 0:01:57]} 10. Nc3 {[%emt 0:00:20]} Na5 {[%emt 0:02:15]} 11. Nd5 {[%emt 0:00:54]} Nxd5 {[%emt 0:06:02]} 12. cxd5 {[%emt 0:01:14]} Bd7 {[%emt 0:01:09]} 13. Nd2 {[%emt 0:01:17]} b6 {[%emt 0:01:17]} 14. b4 {[%emt 0:05:49]} Nb7 {[%emt 0:00:23]} 15. Ba6 {[%emt 0:00:02]} Rb8 $16 {[%emt 0:01:42]} 16. Rc1 {[%emt 0:03:34]} f5 {[%emt 0:04:42]} 17. O-O {[%emt 0:13:50]} f4 {[%emt 0:01:28]} 18. Bf2 {[%emt 0:00:08]} Bc8 {[%emt 0:12:21]} 19. Qc2 {[%emt 0:02:36]} Rf7 {[%emt 0:10:27]} 20. Qc6 {[%emt 0:05:27]} Bf8 {[%emt 0:06:04]} 21. Rc2 {[%emt 0:02:58]} Nc5 {[%emt 0:08:37]} 22. Bxc8 {[%emt 0:01:56]} Rxc8 {[%emt 0:00:05]} 23. Qb5 {[%emt 0:00:09]} Nd7 {[%emt 0:02:50]} 24. Rfc1 {[%emt 0:02:20]} Rxc2 {[%emt 0:01:00]} 25. Rxc2 {[%emt 0:00:01]} Nf6 {[%emt 0:04:09]} 26. Qc6 {[%emt 0:04:24]} Nh5 {[%emt 0:02:46]} 27. a4 {[%emt 0:00:44]} Qg5 {[%emt 0:01:49]} 28. Qc8 {[%emt 0:02:06]} Rf6 {[%emt 0:01:20]} 29. Qd8 {[%emt 0:02:09]} Ng3 {[%emt 0:01:45]} 30. b5 {[%emt 0:11:35]} Qh4 {[%emt 0:04:01]} 31. hxg3 {[%emt 0:01:28]} fxg3 {[%emt 0:00:12]} 32. Be3 {[%emt 0:00:05]} Qh2+ {[%emt 0:07:11]} 33. Kf1 {[%emt 0:00:30]} Qh4 {[%emt 0:00:06]} 34. Qd7 {[%emt 0:00:28]} Rxf3+ {[%emt 0:02:53]} 35. Nxf3 {[%emt 0:00:29]} Qxe4 {[%emt 0:00:14]} 36. Qe6+ {[%emt 0:00:30]} Kh8 {[%emt 0:00:08]} 37. Qf7 {[%emt 0:01:26]} Qd3+ {[%emt 0:02:08]} 38. Re2 {[%emt 0:00:04]} 1-0